bitfinex/quotes_ETHUSD_20240921
["timestamp","ask_amount","ask_price","bid_price","bid_amount"]
[1726896125234,2.47917285,2541.4,2540.9,1.73780486]
[1726896126871,0.17997285,2541.4,2541.3,1.73780486]
[1726896127231,2.2992,2541.6,2541.3,1.73780486]
[1726896127436,0.17986457,2541.4,2541.3,1.73780486]
[1726896127962,7.29735916,2541.8,2541.3,1.73780486]
[1726896128167,2.2992,2541.8,2541.5,1.73780486]
[1726896129965,0.82449573,2542.0,2541.5,1.73780486]
[1726896129966,2.2992,2542.0,2541.5,4.73780486]
[1726896130858,4.48912482,2542.0,2541.5,4.73780486]
[1726896131430,2.2992,2542.0,2541.5,4.73780486]
[1726896140343,0.1797259,2541.9,2541.5,4.73780486]
[1726896146005,0.1797259,2541.9,2541.7,4.73780486]
[1726896146301,3.15339573,2542.3,2541.7,4.73780486]
[1726896146502,0.1797259,2541.8,2541.7,4.73780486]
[1726896146660,3.15339573,2542.3,2541.7,4.73780486]
[1726896146861,0.1797259,2541.8,2541.7,4.73780486]
[1726896147062,2.3289,2542.3,2541.7,4.73780486]
[1726896147293,0.1797259,2541.8,2541.7,4.73780486]
[1726896147495,2.3289,2542.3,2541.7,4.73780486]
[1726896147799,0.31533957,2542.2,2541.7,4.73780486]
[1726896147986,2.3289,2542.3,2541.7,4.73780486]
[1726896148305,0.17999857,2542.2,2541.9,1.73780486]
[1726896148626,0.17999857,2542.2,2542.1,7.12870486]
[1726896148790,5.82265489,2542.7,2542.2,3.0]
[1726896149160,2.16357772,2542.6,2542.2,3.0]
[1726896151992,3.19079923,2542.8,2542.2,3.0]
[1726896154284,2.3663035,2542.8,2542.2,3.0]
[1726896154503,2.3563,2542.6,2542.0,3.0]
[1726896154698,2.3563,2542.4,2541.9,2.4649]
[1726896155720,0.1803914,2542.3,2541.9,2.4649]
[1726896156324,0.1803914,2542.3,2542.0,3.0]
[1726896167531,0.43406054,2542.3,2541.6,2.4426]
[1726896167742,2.48035491,2542.2,2541.4,4.18040486]
[1726896167898,2.48035491,2542.2,2541.5,3.0]
[1726896168098,0.18017096,2542.1,2541.5,3.0]
[1726896168436,2.382,2542.0,2541.5,3.0]
[1726896168933,0.18017096,2541.9,2541.5,3.0]
[1726896169292,0.18017096,2541.9,2541.6,1.73780486]
[1726896177549,0.18017096,2541.9,2541.8,7.04630486]
[1726896177844,3.28209573,2542.4,2541.9,3.0]
[1726896178144,2.4576,2542.4,2541.9,3.0]
[1726896185438,0.18003467,2542.3,2541.9,3.0]
[1726896187351,0.18003467,2542.3,2542.0,1.73780486]
[1726896188361,0.18003467,2542.3,2542.1,5.4999]
[1726896188661,0.82449573,2542.5,2542.1,5.4999]
[1726896188853,0.18011885,2542.2,2542.1,5.4999]
[1726896189029,0.82449573,2542.5,2542.1,5.4999]
[1726896189208,0.18011885,2542.2,2542.1,5.4999]
[1726896189413,0.82449573,2542.5,2542.1,5.4999]
[1726896189650,0.18011885,2542.4,2542.1,5.4999]
[1726896191180,0.18011885,2542.4,2542.2,1.73780486]
[1726896191566,3.18869573,2542.6,2542.2,1.73780486]
[1726896191718,0.18025914,2542.3,2542.2,1.73780486]
[1726896191918,3.18869573,2542.6,2542.2,1.73780486]
[1726896192119,0.18025914,2542.3,2542.2,1.73780486]
[1726896192357,3.18869573,2542.6,2542.2,1.73780486]
[1726896192557,0.18025914,2542.3,2542.2,1.73780486]
[1726896192757,3.18869573,2542.6,2542.2,1.73780486]
[1726896193059,0.44255145,2542.5,2542.2,1.73780486]
[1726896193267,0.62281059,2542.5,2542.2,1.73780486]
[1726896195863,0.18025914,2542.5,2542.2,1.73780486]
[1726896197272,0.82449573,2542.6,2542.2,1.73780486]
[1726896197432,0.18025914,2542.4,2542.2,1.73780486]
[1726896197631,0.82449573,2542.7,2542.2,1.73780486]
[1726896197868,0.18025914,2542.3,2542.2,1.73780486]
[1726896198067,0.82449573,2542.6,2542.2,1.73780486]
[1726896198256,0.18025914,2542.3,2542.2,1.73780486]
[1726896198457,0.82449573,2542.6,2542.2,1.73780486]
[1726896198772,0.18025914,2542.3,2542.2,1.73780486]
[1726896198956,0.82449573,2542.6,2542.2,1.73780486]
[1726896199157,0.18025914,2542.3,2542.2,1.73780486]
[1726896199680,0.82449573,2542.7,2542.2,1.73780486]
[1726896199965,0.18025914,2542.3,2542.2,1.73780486]
[1726896200166,0.82449573,2542.7,2542.2,1.73780486]
[1726896200471,0.82449573,2542.7,2542.4,1.73780486]
[1726896200671,0.18031124,2542.6,2542.4,4.16030486]
[1726896200830,0.18031124,2542.6,2542.4,2.4225]
[1726896202872,0.1804034,2542.5,2542.4,2.4225]
[1726896203069,3.33809923,2542.8,2542.4,2.4225]
[1726896203373,0.1804034,2542.5,2542.4,2.4225]
[1726896203558,3.33809923,2542.8,2542.4,2.4225]
[1726896204031,0.1804034,2542.7,2542.5,3.0]
[1726896204332,0.0374035,2542.8,2542.5,3.0]
[1726896204535,0.1804034,2542.6,2542.5,3.0]
[1726896205073,0.0374035,2542.8,2542.5,3.0]
[1726896205367,0.1804034,2542.6,2542.5,3.0]
[1726896205574,0.0374035,2542.8,2542.5,3.0]
[1726896205733,0.1804034,2542.6,2542.5,3.0]
[1726896205933,0.0374035,2542.8,2542.5,3.0]
[1726896206145,0.1804034,2542.6,2542.5,3.0]
[1726896206349,0.0374035,2542.8,2542.5,3.0]
[1726896206548,0.1804034,2542.6,2542.5,3.0]
[1726896207179,0.0374035,2542.8,2542.5,3.0]
[1726896207368,0.1804034,2542.6,2542.5,3.0]
[1726896207836,0.0374035,2542.8,2542.5,3.0]
[1726896208173,0.1804034,2542.6,2542.5,3.0]
[1726896208374,0.0374035,2542.8,2542.4,2.4225]
[1726896208871,0.1804034,2542.7,2542.4,2.4225]
[1726896209057,0.0374035,2542.8,2542.4,2.4225]
[1726896209233,0.1804034,2542.6,2542.4,2.4225]
[1726896209435,0.48790796,2542.8,2542.4,2.4225]
[1726896209675,0.1804034,2542.5,2542.4,2.4225]
[1726896209982,0.0374035,2542.8,2542.4,2.4225]
[1726896210157,0.1804034,2542.5,2542.4,2.4225]
[1726896210360,0.0374035,2542.8,2542.4,2.4225]
[1726896210571,0.1804034,2542.5,2542.4,2.4225]
[1726896210760,0.36422608,2542.8,2542.4,2.4225]
[1726896211298,0.1804034,2542.7,2542.4,2.4225]
[1726896211499,0.36422608,2542.8,2542.4,2.4225]
[1726896211661,0.1804034,2542.6,2542.4,4.16030486]
[1726896211866,0.0374035,2542.8,2542.5,3.0]
[1726896215459,0.18046753,2542.7,2542.5,3.0]
[1726896215659,0.0374035,2542.8,2542.5,3.0]
[1726896215859,0.18046753,2542.6,2542.5,3.0]
[1726896216181,0.0374035,2542.8,2542.5,3.0]
[1726896216386,0.18046753,2542.6,2542.5,3.0]
[1726896216556,0.0374035,2542.8,2542.5,3.0]
[1726896216764,0.18046753,2542.6,2542.5,3.0]
[1726896216965,0.0374035,2542.8,2542.5,3.0]
[1726896217185,0.18046753,2542.6,2542.5,3.0]
[1726896217707,0.0374035,2542.8,2542.5,3.0]
[1726896217893,0.18046753,2542.6,2542.5,3.0]
[1726896218096,0.0374035,2542.8,2542.5,3.0]
[1726896218281,0.18046753,2542.6,2542.5,3.0]
[1726896218609,0.0374035,2542.8,2542.5,3.0]
[1726896218823,0.18046753,2542.6,2542.5,3.0]
[1726896219025,0.0374035,2542.8,2542.5,3.0]
[1726896219226,0.18046753,2542.6,2542.5,3.0]
[1726896219805,0.0374035,2542.8,2542.5,3.0]
[1726896220005,0.18046753,2542.6,2542.5,3.0]
[1726896220211,0.0374035,2542.8,2542.5,3.0]
[1726896220379,0.18046753,2542.6,2542.5,3.0]
[1726896220584,0.0374035,2542.8,2542.5,3.0]
[1726896221083,0.18046753,2542.7,2542.5,3.0]
[1726896221282,0.0374035,2542.8,2542.5,3.0]
[1726896221500,0.18046753,2542.6,2542.5,3.0]
[1726896221698,0.0374035,2542.8,2542.5,3.0]
[1726896221910,0.18061979,2542.6,2542.5,3.0]
[1726896222098,0.0374035,2542.8,2542.5,3.0]
[1726896222286,0.18061979,2542.6,2542.5,3.0]
[1726896222490,0.0374035,2542.8,2542.5,3.0]
[1726896222689,0.18061979,2542.6,2542.5,3.0]
[1726896223012,0.0374035,2542.8,2542.5,3.0]
[1726896223175,0.18061979,2542.6,2542.5,3.0]
[1726896223806,0.0374035,2542.8,2542.5,3.0]
[1726896224013,0.18061979,2542.6,2542.5,3.0]
[1726896224219,0.0374035,2542.8,2542.5,3.0]
[1726896224818,0.18061979,2542.7,2542.5,3.0]
[1726896225212,0.0374035,2542.8,2542.6,4.15410486]
[1726896227519,0.0374035,2542.8,2542.7,3.0]
[1726896230626,0.21811143,2542.8,2542.7,3.0]
[1726896238527,0.21811143,2542.8,2542.2,2.2943]
[1726896238839,0.21811143,2542.8,2542.4,1.73780486]
[1726896239345,0.21811143,2542.8,2542.5,5.2943]
[1726896241516,0.21811143,2542.8,2542.6,4.73780486]
[1726896243604,0.21811143,2542.8,2542.7,5.53822381]
[1726896244145,0.21811143,2542.8,2542.7,5.4933]
[1726896244346,0.21811143,2542.8,2542.7,5.53819988]
[1726896247208,0.21811143,2542.8,2542.7,5.53820099]
[1726896248557,0.21897253,2542.8,2542.7,5.53820099]
[1726896252445,0.21897253,2542.8,2542.7,5.73070842]
[1726896253257,0.21897253,2542.8,2542.7,7.46851328]
[1726896264592,0.21897253,2542.8,2542.7,7.27600585]
[1726896264794,0.21897253,2542.8,2542.5,1.73780486]
[1726896264940,2.4033,2542.7,2542.5,1.73780486]
[1726896267792,0.0382646,2542.8,2542.5,1.73780486]
[1726896267793,0.0382646,2542.8,2542.6,5.4326]
[1726896267942,0.0382646,2542.8,2542.7,4.73780486]
[1726896271295,0.0382646,2542.8,2542.7,1.73780486]
[1726896275622,0.219313,2542.8,2542.7,1.73780486]
[1726896275824,0.0382646,2542.8,2542.7,1.73780486]
[1726896275979,0.219313,2542.8,2542.7,1.73780486]
[1726896276183,0.0382646,2542.8,2542.7,1.73780486]
[1726896276510,0.219313,2542.8,2542.7,1.73780486]
[1726896276819,0.0382646,2542.8,2542.7,1.73780486]
[1726896277004,0.2192489,2542.8,2542.7,1.73780486]
[1726896277210,0.0382646,2542.8,2542.7,1.73780486]
[1726896277724,0.2192489,2542.8,2542.7,1.73780486]
[1726896278937,0.2192489,2542.8,2542.5,3.04492991]
[1726896279241,0.2192489,2542.8,2542.7,7.02490486]
[1726896283895,0.2192489,2542.8,2542.7,7.21828056]
[1726896284625,0.2192489,2542.8,2542.7,4.73780486]
[1726896284822,0.2192489,2542.8,2542.7,1.73780486]
[1726896285225,0.2192489,2542.8,2542.7,1.78270738]
[1726896286212,0.2192489,2542.8,2542.7,7.06980738]
[1726896304680,0.86139403,2543.5,2542.7,7.06980738]
[1726896304681,2.4830983,2543.5,2542.9,2.4608]
[1726896305022,2.4830983,2543.5,2543.3,1.73780486]
[1726896305023,0.17509567,2543.4,2543.3,1.73780486]
[1726896312424,0.17509567,2543.4,2543.3,4.78266013]
[1726896314316,0.17509567,2543.4,2543.3,4.73780486]
[1726896320792,0.17509567,2543.4,2543.3,1.73780486]
[1726896321097,2.58089567,2543.4,2543.3,1.73780486]
[1726896324657,0.17509567,2543.4,2543.3,1.73780486]
[1726896325282,0.17509567,2543.4,2543.2,3.0]
[1726896325504,0.17509567,2543.4,2543.3,1.73780486]
[1726896326094,2.4058,2543.3,2542.8,3.0]
[1726896326296,2.4058,2543.3,2543.0,1.73780486]
[1726896326537,0.17527587,2543.2,2543.0,1.73780486]
[1726896327099,2.4058,2543.3,2543.0,1.73780486]
[1726896327457,0.1752118,2543.2,2543.0,1.73780486]
[1726896327657,2.4058,2543.3,2543.0,1.73780486]
[1726896327859,2.4058,2543.3,2543.2,1.73780486]
[1726896331114,2.65006983,2543.3,2542.5,9.34776343]
[1726896331282,2.65006983,2543.3,2542.7,1.73780486]
[1726896333192,2.49821204,2543.2,2542.3,2.3208]
[1726896333368,2.3999,2543.0,2542.6,1.73780486]
[1726896333711,2.3999,2542.8,2542.6,1.73780486]
[1726896335527,0.1749755,2542.7,2542.6,1.73780486]
[1726896335860,2.3999,2542.8,2542.6,1.73780486]
[1726896336069,0.17494746,2542.7,2542.6,1.73780486]
[1726896336359,2.3999,2542.8,2542.6,1.73780486]
[1726896336571,0.17493544,2542.7,2542.6,1.73780486]
[1726896336920,2.3999,2542.8,2542.6,1.73780486]
[1726896337121,0.17493544,2542.7,2542.2,3.1905124]
[1726896337338,0.17493544,2542.7,2542.5,1.73780486]
[1726896337572,2.3999,2542.8,2542.5,1.73780486]
[1726896337723,0.17493544,2542.6,2542.2,3.1905124]
[1726896337940,2.3999,2542.8,2542.5,1.73780486]
[1726896338155,2.64972236,2542.8,2542.5,1.73780486]
[1726896338355,0.17493544,2542.7,2542.5,1.73780486]
[1726896338878,0.17464306,2542.6,2542.5,1.73780486]
[1726896339088,2.4993,2542.6,2542.5,1.73780486]
[1726896339408,2.67394306,2542.6,2542.5,1.73780486]
[1726896341383,2.94133737,2542.6,2541.9,2.3096]
[1726896341638,2.94133737,2542.6,2542.0,1.73780486]
[1726896341780,2.94133737,2542.6,2542.2,1.73780486]
[1726896345445,2.67394306,2542.6,2542.4,1.73780486]
[1726896346484,2.67394306,2542.6,2542.0,2.3096]
[1726896346688,2.67394306,2542.6,2542.3,1.73780486]
[1726896349944,2.67394306,2542.6,2542.1,1.73780486]
[1726896357561,2.67394306,2542.6,2542.3,1.73780486]
[1726896357764,2.94133737,2542.6,2541.9,3.0]
[1726896357966,2.94133737,2542.6,2542.0,1.73780486]
[1726896360063,2.4328,2542.5,2541.9,1.73780486]
[1726896360223,2.60708242,2542.5,2541.9,1.73780486]
[1726896361575,2.60708242,2542.5,2542.1,1.73780486]
[1726896367654,2.60708242,2542.5,2542.1,4.73780486]
[1726896369009,2.60708242,2542.5,2542.1,1.73780486]
[1726896376821,0.17428242,2542.5,2542.4,1.73780486]
[1726896377324,0.17423032,2542.5,2542.4,1.73780486]
[1726896377493,2.2977,2542.7,2542.4,1.73780486]
[1726896377683,0.17423032,2542.5,2542.4,1.73780486]
[1726896377882,2.2977,2542.7,2542.4,1.73780486]
[1726896378075,0.17423032,2542.6,2542.4,1.73780486]
[1726896379181,0.17423032,2542.6,2542.4,4.10330486]
[1726896379680,0.17451887,2542.5,2542.4,4.10330486]
[1726896379916,2.266,2542.9,2542.4,4.10330486]
[1726896380234,0.17451887,2542.8,2542.4,4.10330486]
[1726896381787,0.17451887,2542.8,2542.6,1.73780486]
[1726896382488,2.266,2543.1,2542.6,1.73780486]
[1726896382683,0.17456294,2543.0,2542.6,1.73780486]
[1726896390994,2.266,2542.9,2542.4,4.10330486]
[1726896391237,2.266,2542.9,2542.4,1.73780486]
[1726896391435,0.17460701,2542.8,2542.4,1.73780486]
[1726896401057,0.17460701,2542.8,2542.6,1.73780486]
[1726896408582,0.17460701,2542.8,2542.6,4.78273607]
[1726896409006,2.3389,2543.1,2542.6,4.78273607]
[1726896409218,0.17463505,2542.7,2542.6,4.78273607]
[1726896409429,2.3389,2543.1,2542.6,4.78273607]
[1726896409886,0.17463505,2543.0,2542.6,4.78273607]
[1726896410440,0.17463505,2543.0,2542.8,1.73780486]
[1726896410589,0.17463505,2543.0,2542.9,5.399]
[1726896410785,4.99815916,2543.4,2542.9,5.44390251]
[1726896411102,4.99815916,2543.4,2543.1,1.73780486]
[1726896411999,0.0368983,2543.5,2543.3,1.73780486]
[1726896413629,2.4046,2543.4,2542.7,2.2555]
[1726896413832,2.4046,2543.4,2542.9,1.73780486]
[1726896425564,0.17503562,2543.3,2542.9,1.73780486]
[1726896432928,2.278,2543.2,2542.9,1.73780486]
[1726896433368,0.17497955,2543.1,2542.9,1.73780486]
[1726896438158,0.17497955,2543.1,2542.9,4.73780486]
[1726896443046,0.17497955,2543.1,2542.9,1.73780486]
[1726896443279,0.17497955,2543.1,2542.7,4.73780486]
[1726896443475,2.49700757,2543.0,2542.5,3.0]
[1726896443707,2.49700757,2543.0,2542.4,1.73780486]
[1726896443708,2.3987,2543.0,2542.4,1.73780486]
[1726896444020,2.3987,2542.9,2542.4,1.73780486]
[1726896444413,0.17485538,2542.8,2542.4,1.73780486]
[1726896444893,2.3987,2542.9,2542.4,1.73780486]
[1726896445076,0.17485538,2542.7,2542.4,1.73780486]
[1726896445283,2.3987,2542.9,2542.4,1.73780486]
[1726896445503,0.17485538,2542.8,2542.4,1.73780486]
[1726896445677,2.3987,2542.9,2542.4,1.73780486]
[1726896445874,0.17485538,2542.8,2542.4,1.73780486]
[1726896446084,2.3987,2542.9,2542.4,1.73780486]
[1726896446417,0.17485538,2542.7,2542.4,1.73780486]
[1726896446618,2.3987,2542.9,2542.4,1.73780486]
[1726896447018,0.17485538,2542.8,2542.4,1.73780486]
[1726896447519,0.17485538,2542.7,2542.6,1.73780486]
[1726896447684,2.3987,2542.9,2542.6,1.73780486]
[1726896447886,0.17472318,2542.8,2542.6,1.73780486]
[1726896474324,0.17472318,2542.8,2542.7,5.51474723]
[1726896474533,0.17472318,2542.8,2542.7,5.99420047]
[1726896474727,8.12841425,2543.5,2542.8,2.4698]
[1726896474925,8.12841425,2543.5,2543.1,1.73780486]
[1726896475129,7.30405746,2543.5,2543.1,1.73780486]
[1726896476027,7.30405746,2543.5,2543.1,4.20760486]
[1726896476242,7.30405746,2543.5,2543.2,3.0]
[1726896476855,2.3058983,2543.5,2543.2,3.0]
[1726896481973,0.0368983,2543.5,2543.2,3.0]
[1726896482191,0.0368983,2543.5,2543.3,1.73780486]
[1726896485464,0.16868597,2543.4,2543.3,1.73780486]
[1726896490098,0.16868597,2543.4,2543.2,3.0]
[1726896491779,2.63468597,2543.4,2543.0,3.0]
[1726896493484,2.9301444,2543.4,2543.0,3.0]
[1726896496081,2.9301444,2543.4,2542.8,0.19417589]
[1726896496414,2.3661,2543.2,2542.8,1.73780486]
[1726896496791,0.16899832,2543.1,2542.8,1.73780486]
[1726896498886,2.3661,2543.0,2542.5,4.73780486]
[1726896499089,0.25350983,2542.9,2542.5,4.73780486]
[1726896499846,0.16884929,2542.8,2542.5,4.73780486]
[1726896500188,0.08874929,2542.8,2542.5,4.73780486]
[1726896500419,2.3661,2543.0,2542.5,4.73780486]
[1726896500725,0.16617929,2542.9,2542.5,4.73780486]
[1726896501029,0.16617929,2542.9,2542.5,1.73780486]
[1726896501192,0.16617929,2542.9,2542.7,1.73780486]
[1726896502937,0.16617929,2542.9,2542.8,2.3437]
[1726896503123,2.3661,2543.3,2542.8,5.3437]
[1726896503288,0.34859152,2543.2,2543.0,1.73780486]
[1726896504940,2.3661,2543.3,2543.0,1.73780486]
[1726896505306,3.22735509,2543.5,2543.0,1.73780486]
[1726896505498,2.4029983,2543.5,2543.0,1.73780486]
[1726896505702,2.4029983,2543.5,2543.2,1.73780486]
[1726896508325,2.4029983,2543.5,2543.0,1.73780486]
[1726896513399,3.71187383,2543.5,2543.0,1.73780486]
[1726896514517,2.2605,2543.4,2543.0,1.73780486]
[1726896515162,2.2605,2543.4,2542.8,5.3437]
[1726896515375,2.2605,2543.4,2542.9,1.73780486]
[1726896515549,0.1662196,2543.3,2542.9,4.73780486]
[1726896516150,0.1662196,2543.3,2542.7,3.19432129]
[1726896516349,0.1662196,2543.3,2542.8,1.73780486]
[1726896521927,0.16608263,2543.2,2542.8,1.73780486]
[1726896522234,3.08485679,2543.4,2542.8,1.73780486]
[1726896522390,0.16608263,2543.1,2542.8,1.73780486]
[1726896522598,3.08485679,2543.4,2542.8,1.73780486]
[1726896522891,3.72368779,2543.4,2542.8,1.73780486]
[1726896523132,0.16608263,2543.3,2542.8,1.73780486]
[1726896523944,0.16608263,2543.3,2543.0,1.73780486]
[1726896524232,0.16608263,2543.3,2543.0,4.73780486]
[1726896529111,0.16608263,2543.3,2543.0,1.73780486]
[1726896537911,0.16346516,2543.3,2543.0,1.73780486]
[1726896540848,0.16346516,2543.3,2542.8,3.0]
[1726896540849,1.44982811,2543.3,2542.8,4.73780486]
[1726896541252,2.4824,2543.2,2542.8,4.73780486]
[1726896541551,2.4824,2543.2,2542.4,7.77945324]
[1726896541552,2.64586918,2543.1,2542.6,4.73780486]
[1726896541753,2.64586918,2543.1,2542.6,1.73780486]
[1726896541911,3.47022597,2543.1,2542.6,1.73780486]
[1726896542112,3.99693332,2543.1,2542.6,1.73780486]
[1726896542308,3.17257653,2543.1,2542.6,1.73780486]
[1726896542535,3.47022597,2543.1,2542.8,1.73780486]
[1726896542713,2.64586918,2543.1,2542.8,1.73780486]
[1726896547922,2.64586918,2543.1,2542.2,2.05059293]
[1726896547923,2.4824,2543.0,2542.2,2.05059293]
[1726896548253,2.4824,2542.8,2542.2,1.73780486]
[1726896548470,3.30675679,2542.8,2542.2,1.73780486]
[1726896548765,0.16329596,2542.7,2542.2,1.73780486]
[1726896549683,0.16329596,2542.7,2542.4,1.73780486]
[1726896549861,2.4824,2542.8,2542.4,1.73780486]
[1726896550039,2.98224711,2542.8,2542.4,1.73780486]
[1726896550364,2.4824,2542.6,2542.4,1.73780486]
[1726896550728,0.16314286,2542.5,2542.4,1.73780486]
[1726896565578,0.16314286,2542.5,2542.1,2.4485]
[1726896565912,2.4824,2542.6,2542.3,1.73780486]
[1726896571705,0.16297366,2542.5,2542.3,1.73780486]
[1726896592924,2.3183,2542.4,2542.0,1.59583357]
[1726896593224,2.3183,2542.4,2542.0,1.73780486]
[1726896593225,4.45964859,2542.3,2542.0,1.73780486]
[1726896593424,3.30562239,2542.3,2542.0,1.73780486]
[1726896594387,3.10035272,2542.3,2542.0,4.73780486]
[1726896594870,0.98732239,2542.3,2542.2,1.73780486]
[1726896595074,0.1629656,2542.3,2542.2,1.73780486]
[1726896595874,0.82435679,2542.5,2542.2,1.73780486]
[1726896596036,0.16279633,2542.3,2542.2,1.73780486]
[1726896596374,0.16283261,2542.3,2542.2,1.73780486]
[1726896596546,0.82435679,2542.5,2542.2,1.73780486]
[1726896596742,0.16283261,2542.3,2542.2,1.73780486]
[1726896596963,0.82435679,2542.5,2542.2,1.73780486]
[1726896597161,0.16287292,2542.3,2542.2,1.73780486]
[1726896597346,0.82435679,2542.5,2542.2,1.73780486]
[1726896597554,0.16287292,2542.3,2542.2,1.73780486]
[1726896597876,0.82435679,2542.6,2542.2,1.73780486]
[1726896598079,0.16287292,2542.3,2542.2,1.73780486]
[1726896598282,0.82435679,2542.5,2542.2,1.73780486]
[1726896598483,0.16287292,2542.3,2542.2,1.73780486]
[1726896598637,0.82435679,2542.5,2542.2,1.73780486]
[1726896599134,0.16287292,2542.4,2542.2,1.73780486]
[1726896599963,0.82435679,2542.6,2542.2,1.73780486]
[1726896600172,0.16287292,2542.3,2542.2,1.73780486]
[1726896601663,2.4048,2542.2,2541.9,3.0]
[1726896601974,2.4048,2542.2,2541.8,4.73780486]
[1726896604300,2.4048,2542.2,2542.0,1.73780486]
[1726896606551,0.16287292,2542.3,2542.0,1.73780486]
[1726896610365,0.62103941,2542.3,2542.0,1.73780486]
[1726896612382,0.71938359,2542.3,2542.0,1.73780486]
[1726896612583,0.62103941,2542.3,2542.0,1.73780486]
[1726896614507,0.71938354,2542.3,2542.0,1.73780486]
[1726896616508,0.62103941,2542.3,2542.0,1.73780486]
[1726896617010,0.71938349,2542.3,2542.0,1.73780486]
[1726896617211,0.30772835,2542.2,2542.0,1.73780486]
[1726896617418,0.40607661,2542.2,2541.7,4.14320486]
[1726896617586,0.40607661,2542.2,2541.8,3.0]
[1726896617909,0.16253839,2542.1,2541.8,3.0]
[1726896619077,2.60043839,2542.1,2541.7,1.73780486]
[1726896619310,2.98352557,2542.1,2541.7,1.73780486]
[1726896620444,2.98352557,2542.1,2541.5,2.305]
[1726896620603,0.09835258,2542.0,2541.6,1.73780486]
[1726896620804,0.1625142,2541.9,2541.6,1.73780486]
[1726896621328,2.91934783,2542.1,2541.6,1.73780486]
[1726896621534,0.1625142,2541.8,2541.6,1.73780486]
[1726896621720,0.37437046,2542.0,2541.6,1.73780486]
[1726896621925,0.1625142,2541.7,2541.6,4.73780486]
[1726896622102,0.37437046,2542.0,2541.6,4.73780486]
[1726896622308,0.1625142,2541.7,2541.6,4.73780486]
[1726896622539,0.37437046,2542.0,2541.6,4.73780486]
[1726896622738,0.1625142,2541.7,2541.6,4.73780486]
[1726896622911,0.37437046,2542.0,2541.6,4.73780486]
[1726896623443,0.1625142,2541.9,2541.6,4.73780486]
[1726896625350,0.49830138,2541.9,2541.6,4.73780486]
[1726896630152,0.1625142,2541.9,2541.6,4.73780486]
[1726896630314,0.1625142,2541.9,2541.8,4.04280486]
[1726896630508,7.43605916,2542.4,2541.9,3.0]
[1726896630737,2.4379,2542.4,2541.9,3.0]
[1726896631045,0.32622568,2542.3,2541.9,3.0]
[1726896631274,2.4379,2542.4,2541.9,3.0]
[1726896632775,2.4379,2542.4,2542.0,1.73780486]
[1726896635391,3.26225679,2542.4,2542.0,1.73780486]
[1726896636783,2.4379,2542.4,2542.0,1.73780486]
[1726896637592,3.26225679,2542.4,2542.0,1.73780486]
[1726896639244,0.16238113,2542.3,2542.0,1.73780486]
[1726896643858,0.98673792,2542.3,2542.0,1.73780486]
[1726896644286,0.98673792,2542.3,2541.8,4.04280486]
[1726896644596,0.98673792,2542.3,2541.9,3.0]
[1726896644905,1.08508158,2542.3,2541.9,3.0]
[1726896645099,1.52416465,2542.3,2541.9,3.0]
[1726896645266,1.6225083,2542.3,2541.9,3.0]
[1726896645682,1.52416465,2542.3,2541.9,3.0]
[1726896647713,0.98673792,2542.3,2542.0,4.17390486]
[1726896647888,0.98673792,2542.3,2542.1,3.0]
[1726896648083,0.16238113,2542.3,2542.1,3.0]
[1726896652314,0.16238113,2542.3,2542.0,4.17390486]
[1726896652315,0.16238113,2542.3,2542.0,2.4361]
[1726896654087,0.98673792,2542.3,2542.0,2.4361]
[1726896654286,1.44797956,2542.3,2542.0,2.4361]
[1726896655618,1.44797956,2542.3,2541.8,1.73780486]
[1726896655832,2.16439256,2542.2,2541.7,3.0]
[1726896656119,3.11515679,2542.0,2541.3,7.20240486]
[1726896656283,2.16457438,2541.9,2541.3,4.20240486]
[1726896656613,0.82435679,2541.9,2541.3,4.20240486]
[1726896656820,0.1625666,2541.8,2541.5,2.4646]
[1726896657006,0.1625666,2541.8,2541.7,4.20240486]
[1726896657179,0.82435679,2542.2,2541.8,2.4646]
[1726896657520,0.82435679,2542.4,2541.9,4.73780486]
[1726896658079,1.33192356,2542.3,2541.9,4.73780486]
[1726896658325,0.82435679,2542.3,2541.9,4.73780486]
[1726896658920,0.82435679,2542.4,2541.9,4.73780486]
[1726896659323,1.33193187,2542.3,2541.9,4.73780486]
[1726896659483,0.82435679,2542.3,2541.9,4.73780486]
[1726896659995,0.82435679,2542.4,2541.9,4.73780486]
[1726896661126,2.15628841,2542.3,2541.9,4.73780486]
[1726896661422,0.82435679,2542.3,2541.9,4.73780486]
[1726896662927,0.82435679,2542.3,2542.1,4.05090486]
[1726896664121,0.82435679,2542.3,2542.1,2.3131]
[1726896664326,0.82435679,2542.4,2542.1,2.3131]
[1726896665628,1.33192001,2542.3,2542.1,2.3131]
[1726896665800,0.82435679,2542.4,2542.1,2.3131]
[1726896668348,0.82435679,2542.6,2542.4,5.3938]
[1726896668491,0.82435679,2542.8,2542.5,4.73780486]
[1726896668721,0.82435679,2542.9,2542.7,1.73780486]
[1726896668918,0.82435679,2542.9,2542.8,3.0]
[1726896669145,2.15579343,2542.9,2542.8,3.0]
[1726896669330,2.15579343,2542.9,2542.7,2.3938]
[1726896669331,2.31848095,2542.9,2542.7,2.3938]
[1726896669639,0.16268752,2542.9,2542.7,2.3938]
[1726896672320,0.61816547,2542.9,2542.0,3.0]
[1726896672533,1.44252226,2542.9,2542.3,1.73780486]
[1726896674621,2.3327,2542.8,2542.3,1.73780486]
[1726896675061,0.1629011,2542.7,2542.3,1.73780486]
[1726896675279,0.1629011,2542.7,2542.1,2.3938]
[1726896675433,0.1629011,2542.6,2542.1,2.3938]
[1726896675650,0.1629011,2542.6,2541.9,9.03780486]
[1726896675651,4.58080505,2542.5,2541.9,7.3]
[1726896675961,4.58080505,2542.5,2541.7,4.01850486]
[1726896675962,0.9871773,2542.4,2541.7,4.01850486]
[1726896676165,0.16282051,2542.4,2541.9,1.73780486]
[1726896680736,0.16282051,2542.4,2542.1,1.73780486]
[1726896680943,0.16282051,2542.4,2542.3,4.73780486]
[1726896681134,3.15705679,2542.7,2542.3,4.73780486]
[1726896681372,0.60201043,2542.6,2542.3,4.73780486]
[1726896682472,0.60201043,2542.6,2542.2,5.2807]
[1726896686988,0.16265123,2542.6,2542.5,1.73780486]
[1726896687225,0.16265123,2542.6,2542.5,7.01850486]
[1726896687562,3.15705679,2543.1,2542.6,3.0]
[1726896688571,2.3327,2543.1,2542.6,3.0]
[1726896688884,1.33037757,2543.0,2542.6,3.0]
[1726896689093,3.15705679,2543.1,2542.6,3.0]
[1726896689272,1.33037803,2543.0,2542.6,3.0]
[1726896689603,3.15705679,2543.1,2542.6,3.0]
[1726896691429,5.52830388,2543.1,2542.6,3.0]